fUSD/lending_fUSD_20240213
["ID","MTS","AMOUNT","RATE_DAILY","PERIOD"]
[313961958,1707864586732,3273.18,0.00021789,2]
[313961962,1707864605360,520.62,0.00021789,2]
[313961970,1707864631569,-21779.60487693,0.00021901,2]
[313961971,1707864631580,-750.0,0.00021901,2]
[313961972,1707864631589,-156.83136019,0.00021901,2]
[313961973,1707864631599,-250.0,0.00021918,2]
[313961974,1707864631609,-552.96,0.0002192,2]
[313961975,1707864631618,-363.2,0.00021936,2]
[313961976,1707864631628,-160.28,0.00021981,2]
[313961977,1707864631639,-177.27,0.00022,2]
[313961978,1707864631649,-499.99,0.00022061,2]
[313961979,1707864631659,-390.4,0.00022268,2]
[313961980,1707864631669,-177.27,0.00022548,2]
[313961981,1707864631678,-999.99,0.00022548,2]
[313961982,1707864631687,-2037.05,0.00022548,2]
[313961983,1707864631698,-132.34231171,0.000226,2]
[313961984,1707864631715,-38.66518829,0.000226,2]
[313961985,1707864631727,-803.0257,0.000226,2]
[313961986,1707864631737,-175.67694424,0.000226,2]
[313961987,1707864631759,-1.92815576,0.000226,2]
[313961988,1707864631769,-250.29287395,0.000226,2]
[313961989,1707864631781,-749.70712605,0.000226,2]
[313961990,1707864631792,-285.2569,0.000226,2]
[313961991,1707864631802,-1044.35236561,0.00022668,2]
[313961992,1707864631812,-8251.64834933,0.00022669,2]
[313961993,1707864631824,-667.61891395,0.00022669,2]
[313961994,1707864631835,-1083.51079046,0.00022669,2]
[313961995,1707864631847,-1845.42721056,0.00022669,2]
[313961996,1707864631859,-576.57357286,0.00022669,2]
[313961997,1707864631871,-746.41878368,0.00022669,2]
[313961998,1707864631891,-11725.72872314,0.00022669,2]
[313961999,1707864631903,-1854.60168245,0.00022669,2]
[313962000,1707864631915,-2499.38394071,0.00022669,2]
[313962001,1707864631927,-2619.6624,0.00022669,2]
[313962002,1707864631941,-4468.02983286,0.00022669,2]
[313962003,1707864631950,-775.83648441,0.00022697,3]
[313962004,1707864631960,-710.81,0.00022697,2]
[313962007,1707864631971,-151.0214,0.00022698,3]
[313962010,1707864631981,-151.0214,0.00022698,3]
[313962012,1707864631991,-151.0214,0.00022698,3]
[313962014,1707864632000,-151.0214,0.00022698,3]
[313962016,1707864632010,-151.0214,0.00022698,3]
[313962018,1707864632019,-151.0214,0.00022698,3]
[313962020,1707864632028,-151.0214,0.00022698,3]
[313962022,1707864632037,-151.0214,0.00022698,3]
[313962024,1707864632047,-4590.15935286,0.00022698,2]
[313962025,1707864632056,-188.45198976,0.00022698,2]
[313962026,1707864632065,-280.92718311,0.00022698,2]
[313962027,1707864632075,-736.93,0.00022699,2]
[313962028,1707864632084,-15746.84159228,0.00022699,2]
[313962029,1707864632096,-604.7260143,0.00022699,2]
[313962030,1707864632127,-318.63993207,0.00022699,2]
[313962031,1707864632136,-313.71825011,0.000227,2]
[313962032,1707864632148,-409.25174989,0.000227,2]
[313962033,1707864632157,-1973.24825011,0.000227,2]
[313962034,1707864632170,-18963.16824989,0.000227,2]
[313962035,1707864632179,-1000.0,0.000227,2]
[313962036,1707864632188,-9145.73963955,0.000227,2]
[313962037,1707864632199,-9196.69471139,0.000227,2]
[313962038,1707864632211,-547.40747628,0.000227,2]
[313962043,1707864637869,-403.57769,0.000227,2]
[313962044,1707864637919,-1109.82394119,0.000227,2]
[313962045,1707864637933,-6479.63074159,0.000227,2]
[313962046,1707864637943,-13127.26876407,0.000227,2]
[313962047,1707864637956,-86872.73123593,0.000227,2]
[313962048,1707864637968,-171.74706622,0.00022744,2]
[313962049,1707864637977,-4267.78586218,0.00022768,2]
[313962050,1707864637987,-282.53144061,0.00022768,2]
[313962051,1707864637997,-25841.99589294,0.00022769,2]
[313962052,1707864638010,-17510.80629228,0.00022769,2]
[313962053,1707864638023,-142660.17652464,0.0002277,2]
[313962054,1707864638034,-727.65,0.00022844,2]
[313962055,1707864638044,-838.36607188,0.000229,2]
[313962056,1707864638056,-314.46632493,0.000229,2]
[313962058,1707864638068,-185.53367507,0.000229,2]
[313962060,1707864638077,-3857.03296693,0.000229,2]
[313962062,1707864638090,-7442.804616,0.000229,2]
[313962066,1707864638108,-28716.13925467,0.000229,2]
[313962069,1707864638132,-1320.547675,0.000229,2]
[313962071,1707864638143,-47185.87601425,0.000229,2]
[313962073,1707864638155,-9564.84837315,0.000229,2]
[313962075,1707864638164,-4022.34223517,0.000229,2]
[313962077,1707864638173,-217.65356206,0.000229,2]
[313962079,1707864638183,-726.19330428,0.000229,2]
[313962081,1707864638192,-306.54269616,0.000229,2]
[313962083,1707864638202,-2818.36638328,0.000229,2]
[313962085,1707864638211,-269.89461766,0.000229,2]
[313962087,1707864638221,-193.88407957,0.0002299,2]
[313962089,1707864638230,-155.0,0.00022994,2]
[313962091,1707864638239,-734.01,0.00022997,2]
[313962092,1707864638249,-629.82985968,0.00022997,2]
[313962094,1707864638258,-511.26728987,0.00022997,2]
[313962096,1707864638268,-486.25881961,0.00022998,2]
[313962098,1707864638278,-547.4004666,0.00022998,2]
[313962100,1707864638287,-1955.00866433,0.00022998,2]
[313962102,1707864638297,-180.93154071,0.00022998,2]
[313962104,1707864638306,-7174.36729539,0.00022998,5]
[313962106,1707864638316,-7434.88534733,0.00022998,2]
[313962108,1707864638326,-1180.65689555,0.00022998,2]
[313962110,1707864638335,-329.56924662,0.00022998,2]
[313962112,1707864638345,-738.29623454,0.00022998,2]
[313962114,1707864638355,-247.97297168,0.00022998,2]
[313962116,1707864638365,-168.33587527,0.00022998,2]
[313962119,1707864638378,-10.38540242,0.00022998,2]
[313962121,1707864638388,-295.7849873,0.00022998,2]
[313962123,1707864638397,-534.31790056,0.00022998,2]
[313962125,1707864638406,-261.82623265,0.00022998,2]
[313962127,1707864638416,-321.27963262,0.00022998,2]
[313962129,1707864638425,-234.53774303,0.00022998,2]
[313962131,1707864638434,-288.10515116,0.00022998,2]
[313962133,1707864638444,-158.79636252,0.00022998,2]
[313962135,1707864638453,-151.0214,0.00022998,3]
[313962136,1707864638462,-151.0214,0.00022998,3]
[313962138,1707864638472,-151.0214,0.00022998,3]
[313962142,1707864638496,-151.0214,0.00022998,3]
[313962144,1707864638505,-151.0214,0.00022998,3]
[313962146,1707864638515,-151.0214,0.00022998,3]
[313962148,1707864638525,-151.0214,0.00022998,3]
[313962150,1707864638534,-49.43145963,0.00022998,3]
[313962153,1707864638549,-101.58994037,0.00022998,3]
[313962155,1707864638559,-151.0214,0.00022998,3]
[313962157,1707864638569,-151.0214,0.00022998,3]
[313962159,1707864638579,-151.0214,0.00022998,3]
[313962161,1707864638590,-151.0214,0.00022998,3]
[313962163,1707864638600,-151.0214,0.00022998,3]
[313962165,1707864638610,-151.0214,0.00022998,3]
[313962167,1707864638620,-151.0214,0.00022998,3]
[313962169,1707864638630,-151.0214,0.00022998,3]
[313962171,1707864638640,-200.0,0.00022998,2]
[313962173,1707864638649,-3265.41615585,0.00022998,2]
[313962175,1707864638659,-156.06475516,0.00022999,2]
[313962178,1707864638668,-286.79931458,0.00022999,2]
[313962179,1707864638678,-157.80323585,0.00022999,2]
[313962181,1707864638687,-404.5107215,0.00022999,2]
[313962182,1707864638697,-500.0,0.00022999,2]
[313962183,1707864638707,-500.0,0.00022999,2]
[313962184,1707864638716,-207.37751914,0.00022999,2]
[313962185,1707864638749,-292.62248086,0.00022999,2]
[313962186,1707864638759,-500.0,0.00022999,2]
[313962187,1707864638768,-316.15326953,0.00022999,2]
[313962192,1707864640228,-236.25268828,0.00022699,2]
[313962193,1707864640238,-374.4718589,0.000227,3]
[313962194,1707864640334,-432.66305691,0.000227,3]
[313962195,1707864640444,-296.01757567,0.000227,3]
[313962196,1707864640455,-67.12542433,0.00022999,2]
[313962276,1707864642621,-116.72130614,0.00022999,2]
[313962277,1707864642631,-253.6322494,0.00022999,2]
[313962278,1707864642641,-500.0,0.00022999,2]
[313962279,1707864642651,-500.0,0.00022999,2]
[313962281,1707864642660,-500.0,0.00022999,2]
[313962283,1707864642669,-213.1685063,0.00022999,2]
[313962284,1707864642678,-500.0,0.00022999,2]
[313962285,1707864642687,-444.19747743,0.00022999,2]
[313962286,1707864642697,-202.05064238,0.00022999,2]
[313962287,1707864642706,-198.76697887,0.00022999,2]
[313962288,1707864642715,-500.0,0.00022999,2]
[313962289,1707864642725,-478.25364383,0.00022999,2]
[313962290,1707864642734,-500.0,0.00022999,2]
[313962291,1707864642744,-300.0,0.00022999,2]
[313962292,1707864642753,-300.0,0.00022999,2]
[313962293,1707864642762,-300.0,0.00022999,2]
[313962294,1707864642772,-300.0,0.00022999,2]
[313962295,1707864642781,-300.0,0.00022999,2]
[313962296,1707864642790,-150.0,0.00022999,2]
[313962297,1707864642799,-150.0,0.00022999,2]
[313962298,1707864642808,-150.0,0.00022999,2]
[313962299,1707864642818,-250.28576935,0.00022999,3]
[313962300,1707864642827,-41401.7193263,0.00023,3]
[313962301,1707864642858,-687.89428857,0.00023,3]
[313962309,1707864645681,-4593.90317992,0.00022998,2]
[313962310,1707864645691,-18453.14967651,0.00023,3]
[313962315,1707864645994,-1899.86081362,0.00023,3]
[313962338,1707864693045,534.08,0.0002126,2]
[313962339,1707864694408,205.0,0.00021562,2]
[313962340,1707864986058,2000.0,0.00021896,2]
[313962341,1707865153474,509.44,0.0002179,2]
[313962342,1707865155668,561.99,0.00019872,2]
[313962343,1707865271728,250.0,0.00021688,2]
[313962344,1707865463671,1844.84,0.00021783,2]
[313962345,1707865473686,202.0,0.00021308,2]
[313962346,1707865561835,4085.58,0.00021776,2]
[313962347,1707865689849,549.89,0.0001977,2]
[313962348,1707865737547,592.44,0.0002179,2]
[313962395,1707865831831,-175.19204288,0.00021906,2]
[313962396,1707865831841,-300.0,0.00021906,2]
[313962397,1707865831852,-19549.09486332,0.00021907,2]
[313962398,1707865831865,-365.35210606,0.00021907,2]
[313962399,1707865831878,-679.87413157,0.00021907,2]
[313962400,1707865831937,-2958.08076918,0.00021907,2]
[313962401,1707865831949,-927.2030068,0.00021907,2]
[313962402,1707865831958,-250.0,0.00021918,2]
[313962403,1707865831968,-161.01,0.00021951,2]
[313962404,1707865831977,-70.59112258,0.00021972,2]
[313962405,1707865831997,-1299.73887742,0.00021972,2]
[313962406,1707865832008,-177.27,0.00022,2]
[313962407,1707865832017,-150.0,0.00022,2]
[313962408,1707865832028,-549.89,0.00022034,2]
[313962409,1707865832038,-499.99,0.0002222,2]
[313962410,1707865832047,-64.00463865,0.0002222,2]
[313962411,1707865832059,-672.67536135,0.0002222,2]
[313962412,1707865832069,-730.44,0.00022235,2]
[313962413,1707865832079,-270.36,0.00022237,2]
[313962414,1707865832088,-1605.7,0.00022259,2]
[313962415,1707865832099,-716.12,0.00022259,2]
[313962416,1707865832108,-730.81,0.00022305,2]
[313962418,1707865832118,-712.39,0.00022398,2]
[313962420,1707865832127,-496.63,0.0002253,2]
[313962422,1707865832138,-177.27,0.00022548,2]
[313962424,1707865832147,-641.56698324,0.00022575,3]
[313962426,1707865832157,-735.63,0.00022575,2]
[313962427,1707865832167,-1104.6179514,0.00022617,2]
[313962429,1707865832176,-150.0,0.00022635,2]
[313962431,1707865832186,-243.50964766,0.00022642,2]
[313962433,1707865832196,-150.0,0.00022669,2]
[313962435,1707865832205,-150.0,0.00022678,2]
[313962437,1707865832214,-150.0,0.00022682,2]
[313962439,1707865832223,-2006.0,0.00022698,2]
[313962440,1707865832233,-735.1,0.00022699,2]
[313962442,1707865832245,-719.68,0.00022699,2]
[313962444,1707865832255,-150.0,0.000227,2]
[313962446,1707865832264,-150.0,0.00022718,2]
[313962448,1707865832275,-155.0,0.00022722,2]
[313962450,1707865832284,-150.0,0.00022726,2]
[313962452,1707865832295,-150.0,0.0002273,2]
[313962454,1707865832304,-150.0,0.00022731,2]
[313962456,1707865832313,-150.0,0.00022732,2]
[313962458,1707865832324,-150.0,0.00022732,2]
[313962460,1707865832334,-150.0,0.00022738,2]
[313962462,1707865832343,-150.0,0.00022741,2]
[313962463,1707865832352,-150.0,0.00022749,2]
[313962465,1707865832361,-150.0,0.00022751,2]
[313962467,1707865832370,-150.0,0.00022787,2]
[313962469,1707865832380,-150.0,0.00022797,2]
[313962471,1707865832389,-150.0,0.000228,2]
[313962473,1707865832398,-157.80304487,0.00022808,2]
[313962475,1707865832407,-150.0,0.00022816,2]
[313962476,1707865832416,-500.0,0.00022816,2]
[313962478,1707865832425,-150.0,0.00022821,2]
[313962480,1707865832435,-150.0,0.00022851,2]
[313962482,1707865832444,-150.0,0.00022869,2]
[313962484,1707865832453,-150.0,0.00022872,2]
[313962486,1707865832462,-150.0,0.00022872,2]
[313962488,1707865832472,-16270.92448178,0.0002288,2]
[313962490,1707865832481,-155.49937617,0.00022883,2]
[313962491,1707865832490,-150.0,0.00022892,2]
[313962493,1707865832499,-150.0,0.00022892,2]
[313962495,1707865832508,-150.0,0.00022896,2]
[313962497,1707865832518,-1118.1045,0.00022899,2]
[313962499,1707865832528,-575.11602118,0.000229,2]
[313962537,1707865837791,-1841.03998247,0.000229,2]
[313962542,1707865838011,-13203.87309635,0.000229,2]
[313962543,1707865838020,-2619.6624,0.000229,2]
[313962544,1707865838030,-714.47,0.000229,2]
[313962545,1707865838039,-716.18,0.000229,2]
[313962546,1707865838048,-1221.503449,0.000229,2]
[313962547,1707865838058,-150.0,0.000229,2]
[313962548,1707865838067,-4330.27095123,0.000229,2]
[313962549,1707865838076,-217.65356206,0.000229,2]
[313962550,1707865838085,-5940.66980288,0.000229,2]
[313962551,1707865838094,-842.8430681,0.000229,2]
[313962552,1707865838103,-150.0,0.00022908,2]
[313962553,1707865838113,-150.0,0.00022929,2]
[313962554,1707865838123,-150.0,0.00022941,2]
[313962555,1707865838132,-150.0,0.00022947,2]
[313962556,1707865838142,-150.0,0.00022948,2]
[313962557,1707865838151,-150.0,0.00022951,2]
[313962558,1707865838161,-180.8883393,0.00022952,2]
[313962559,1707865838170,-150.0,0.00022966,2]
[313962560,1707865838180,-150.0,0.00022975,2]
[313962561,1707865838189,-150.0,0.00022989,2]
[313962562,1707865838198,-156.75185673,0.00022998,2]
[313962563,1707865838208,-270.57153416,0.00022998,2]
[313962564,1707865838217,-360.49430246,0.00022998,2]
[313962565,1707865838226,-155.0,0.00022998,2]
[313962566,1707865838236,-836.0973484,0.00022998,2]
[313962568,1707865838250,-1619.87790721,0.00022998,2]
[313962570,1707865838260,-151.0214,0.00022998,3]
[313962571,1707865838269,-151.0214,0.00022998,3]
[313962572,1707865838279,-151.0214,0.00022998,3]
[313962573,1707865838290,-151.0214,0.00022998,3]
[313962574,1707865838300,-151.0214,0.00022998,3]
[313962575,1707865838309,-151.0214,0.00022998,3]
[313962576,1707865838320,-151.0214,0.00022998,3]
[313962577,1707865838330,-151.0214,0.00022998,3]
[313962578,1707865838339,-151.0214,0.00022998,3]
[313962579,1707865838348,-151.0214,0.00022998,3]
[313962580,1707865838357,-151.0214,0.00022998,3]
[313962581,1707865838366,-151.0214,0.00022998,3]
[313962582,1707865838375,-720.64213685,0.00022999,2]
[313962583,1707865838384,-300.02,0.00022999,2]
[313962584,1707865838393,-3314.82130757,0.00022999,2]
[313962585,1707865838402,-443.08074752,0.00022999,2]
[313962586,1707865838412,-150.0,0.00022999,2]
[313962587,1707865838421,-150.0,0.00022999,2]
[313962588,1707865838430,-150.0,0.00022999,2]
[313962589,1707865838439,-150.0,0.00022999,2]
[313962590,1707865838448,-56832.37139017,0.00023,3]
[313962591,1707865838487,-439.00414469,0.00023,3]
[313962592,1707865838504,-6269.43578021,0.00023,3]
[313962593,1707865838515,-744.85674,0.00023,3]
[313962594,1707865838526,-868.54757562,0.00023,3]
[313962614,1707865840665,-16913.3,0.00023,3]
[313962644,1707865842929,-179.9297451,0.000229,2]
[313962646,1707865842939,-7730.76005492,0.00023,3]
[313962674,1707865843195,-738151.61218804,0.00023,3]
[313962685,1707865845801,-2459.49736087,0.00022999,2]
[313962686,1707865845857,-757.57876505,0.00022999,2]
[313962687,1707865845868,-9162.00399207,0.00023,3]
[313962688,1707865846073,-14192.54507382,0.00023,3]
[313962689,1707865846132,-5852.24158472,0.00023,3]
[313962718,1707865901944,564.93540534,0.00020468,2]
[313962719,1707866184759,526.04,0.00021797,2]
[313962720,1707866238017,510.09,0.00019966,2]
[313962721,1707866553843,202.0,0.00021072,2]
[313962722,1707866581216,3404.65,0.0002188,2]
[313962723,1707866658442,579.16,0.0002188,2]
[313962724,1707866732537,499.03,0.00019961,2]
[313962731,1707866862254,216.28,0.00021879,2]
[313962753,1707867013586,329.56,0.00021885,2]
[313962754,1707867029350,2837.2,0.00021883,2]
[313962757,1707867032306,-250.0,0.00021918,2]
[313962758,1707867032315,-2.0,0.00021998,2]
[313962759,1707867032327,-175.27,0.00021998,2]
[313962760,1707867032337,-161.01,0.00022043,2]
[313962761,1707867032346,-187.04510918,0.00022078,2]
[313962763,1707867032355,-89.50684787,0.00022225,2]
[313962765,1707867032367,-409.52315213,0.00022225,2]
[313962766,1707867032376,-177.27,0.00022546,2]
[313962767,1707867032386,-214.00743298,0.00022678,2]
[313962768,1707867032395,-150.0,0.00022729,2]
[313962769,1707867032404,-150.0,0.00022738,2]
[313962770,1707867032414,-452.73516731,0.00022738,2]
[313962771,1707867032427,-47.25483269,0.00022738,2]
[313962772,1707867032437,-150.0,0.00022741,2]
[313962773,1707867032446,-150.0,0.00022763,2]
[313962774,1707867032455,-123.82090384,0.00022767,2]
[313962775,1707867032468,-26.17909616,0.00022767,2]
[313962776,1707867032478,-150.0,0.00022768,2]
[313962777,1707867032488,-150.0,0.00022778,2]
[313962778,1707867032497,-150.0,0.00022783,2]
[313962779,1707867032507,-150.0,0.00022783,2]
[313962780,1707867032516,-150.0,0.00022789,2]
[313962781,1707867032526,-150.0,0.00022793,2]
[313962782,1707867032535,-150.0,0.00022795,2]
[313962783,1707867032545,-150.0,0.000228,2]
[313962784,1707867032554,-404.98,0.000228,2]
[313962785,1707867032564,-418.5,0.000228,2]
[313962786,1707867032573,-150.0,0.000228,2]
[313962787,1707867032583,-150.0,0.00022803,2]
[313962788,1707867032594,-150.0,0.00022805,2]
[313962789,1707867032605,-1500.0,0.00022807,2]
[313962790,1707867032617,-150.0,0.0002281,2]
[313962791,1707867032629,-1500.0,0.00022813,2]
[313962792,1707867032639,-800.0,0.00022815,2]
[313962793,1707867032648,-800.0,0.00022815,2]
[313962794,1707867032659,-200.0,0.00022815,2]
[313962795,1707867032670,-500.0,0.00022815,2]
[313962796,1707867032681,-200.0,0.00022815,2]
[313962797,1707867032690,-200.0,0.00022815,2]
[313962798,1707867032702,-800.0,0.00022816,2]
[313962799,1707867032711,-200.0,0.00022816,2]
[313962800,1707867032721,-500.0,0.00022816,2]
[313962801,1707867032730,-150.0,0.00022817,2]
[313962802,1707867032740,-150.0,0.0002282,2]
[313962803,1707867032752,-150.0,0.00022823,2]
[313962804,1707867032763,-150.0,0.00022829,2]
[313962805,1707867032774,-150.0,0.00022838,2]
[313962806,1707867032785,-150.0,0.00022839,2]
[313962807,1707867032796,-150.0,0.00022844,2]
[313962808,1707867032806,-151.66089329,0.00022851,2]
[313962809,1707867032816,-150.0,0.00022852,2]
[313962810,1707867032826,-150.0,0.00022857,2]
[313962811,1707867032835,-150.0,0.00022862,2]
[313962812,1707867032845,-150.0,0.00022874,2]
[313962813,1707867032854,-150.0,0.00022876,2]
[313962814,1707867032864,-800.0,0.00022877,2]
[313962815,1707867032873,-687.90962006,0.00022883,2]
[313962816,1707867032886,-369.71109466,0.00022883,2]
[313962817,1707867032897,-150.0,0.00022887,2]
[313962818,1707867032906,-150.0,0.00022895,2]
[313962819,1707867032915,-150.0,0.00022896,2]
[313962820,1707867032924,-1103.25529039,0.00022898,2]
[313962821,1707867032938,-326.43046132,0.00022898,2]
[313962822,1707867032954,-1071.21268622,0.00022898,2]
[313962823,1707867032966,-6024.59338267,0.00022898,2]
[313962824,1707867032995,-1042.42601603,0.00022898,2]
[313962825,1707867033007,-1403.57398397,0.00022898,2]
[313962826,1707867033019,-792.99802951,0.00022898,2]
[313962827,1707867033035,-980.60879457,0.00022898,2]
[313962828,1707867033048,-873.88175532,0.00022898,2]
[313962829,1707867033059,-150.0,0.00022899,2]
[313962830,1707867033070,-422.12,0.000229,2]
[313962831,1707867033081,-150.0,0.000229,2]
[313962832,1707867033092,-274.52,0.000229,2]
[313962833,1707867033101,-418.5,0.000229,2]
[313962834,1707867033110,-2451.83335713,0.000229,2]
[313962835,1707867033122,-1009.80580665,0.000229,2]
[313962836,1707867033133,-507.77587493,0.000229,2]
[313962837,1707867033147,-165.23412507,0.000229,2]
[313962838,1707867038023,-14.83214953,0.000229,2]
[313962839,1707867038033,-344.06885147,0.000229,2]
[313962840,1707867038077,-140.06001805,0.000229,2]
[313962841,1707867038088,-143.13098195,0.000229,2]
[313962842,1707867038133,-61.23081549,0.000229,2]
[313962843,1707867038143,-561.89537874,0.000229,2]
[313962844,1707867038154,-3960.44653524,0.000229,2]
[313962845,1707867038163,-559.12016539,0.000229,2]
[313962846,1707867038172,-150.0,0.00022904,2]
[313962847,1707867038181,-1500.0,0.00022916,2]
[313962848,1707867038190,-150.0,0.00022929,2]
[313962849,1707867038199,-150.0,0.00022929,2]
[313962850,1707867038209,-212.06320015,0.0002293,2]
[313962851,1707867038218,-150.0,0.00022935,2]
[313962852,1707867038227,-150.0,0.00022939,2]
[313962853,1707867038236,-150.0,0.0002294,2]
[313962854,1707867038245,-150.0,0.00022944,2]
[313962855,1707867038254,-150.0,0.00022944,2]
[313962856,1707867038263,-150.0,0.00022946,2]
[313962857,1707867038273,-150.0,0.00022955,2]
[313962858,1707867038282,-150.0,0.00022959,2]
[313962859,1707867038291,-150.0,0.0002296,2]
[313962860,1707867038300,-150.0,0.0002296,2]
[313962861,1707867038308,-150.0,0.00022967,2]
[313962862,1707867038318,-366.26707531,0.00022973,3]
[313962863,1707867038328,-216.28,0.00022973,2]
[313962864,1707867038337,-150.0,0.00022975,2]
[313962865,1707867038347,-150.0,0.00022989,2]
[313962867,1707867038356,-150.0,0.00022995,2]
[313962868,1707867038365,-283.40374744,0.00022995,2]
[313962870,1707867038375,-289.70021411,0.00022998,2]
[313962872,1707867038384,-977.86012769,0.00022998,2]
[313962874,1707867038393,-1079.91860481,0.00022998,2]
[313962875,1707867038402,-3217.07612592,0.00022998,2]
[313962876,1707867038411,-151.0214,0.00022998,3]
[313962877,1707867038421,-151.0214,0.00022998,3]
[313962878,1707867038430,-151.0214,0.00022998,3]
[313962879,1707867038439,-151.0214,0.00022998,3]
[313962880,1707867038448,-151.0214,0.00022998,3]
[313962881,1707867038457,-151.0214,0.00022998,3]
[313962883,1707867038466,-151.0214,0.00022998,3]
[313962885,1707867038475,-151.0214,0.00022998,3]
[313962887,1707867038484,-151.0214,0.00022998,3]
[313962889,1707867038493,-151.0214,0.00022998,3]
[313962891,1707867038502,-151.0214,0.00022998,3]
[313962893,1707867038511,-151.0214,0.00022998,3]
[313962895,1707867038520,-151.0214,0.00022998,3]
[313962897,1707867038529,-151.0214,0.00022998,3]
[313962899,1707867038538,-151.0214,0.00022998,3]
[313962901,1707867038548,-151.0214,0.00022998,3]
[313962903,1707867038557,-151.0214,0.00022998,3]
[313962905,1707867038567,-151.0214,0.00022998,3]
[313962907,1707867038577,-40636.87581396,0.00022998,2]
[313962909,1707867038590,-40697.23547881,0.00022998,2]
[313962911,1707867038599,-150.0,0.00022999,2]
[313962913,1707867038609,-150.0,0.00022999,2]
[313962915,1707867038619,-18208.30051107,0.00023,3]
[313962924,1707867038725,-1792.95004486,0.00023,3]
[313962925,1707867038748,-3446.2102971,0.00023,3]
[313962926,1707867040772,-500.0,0.00023,3]
[313962927,1707867041627,-271.02017302,0.00023,3]
[313962956,1707867043031,-82071.97849187,0.00023,3]
[313962957,1707867043086,-527.24,0.00023,3]
[313962958,1707867043142,-274.99301369,0.00023,3]
[313962959,1707867043203,-3015.30947624,0.00023,3]
[313962960,1707867043374,-2009.95,0.00023,3]
[313962965,1707867046113,-1313.6999975,0.00022998,2]
[313962966,1707867046267,-294.83806546,0.00022998,2]
[313962967,1707867046278,-539.7691402,0.00023,3]
[313962971,1707867144820,536.00973547,0.00020698,2]
[313962972,1707867253755,463.56,0.0002061,2]
[313962973,1707867361697,153.71,0.00021883,2]
[313962975,1707867633754,202.0,0.00021066,2]
[313962979,1707867726650,454.65,0.00020341,2]
[313962980,1707867904101,205.0,0.00021066,2]
[313963028,1707868227965,250.0,0.00021893,2]
[313963074,1707868238191,-188.4006881,0.00021918,2]
[313963076,1707868238201,-188.4006881,0.00021918,2]
[313963078,1707868238210,-250.0,0.00021918,2]
[313963079,1707868238220,-500.0,0.00021981,2]
[313963080,1707868238229,-177.27,0.00021998,2]
[313963081,1707868238239,-160.20079798,0.00022078,2]
[313963082,1707868238251,-464.03938052,0.00022078,2]
[313963083,1707868238261,-180.32641181,0.0002212,2]
[313963084,1707868238270,-779.66,0.00022145,2]
[313963085,1707868238279,-1393.57946343,0.00022155,2]
[313963086,1707868238291,-559.28171963,0.00022155,2]
[313963087,1707868238574,-592.25881694,0.00022155,2]
[313963088,1707868238584,-632.33,0.00022155,2]
[313963089,1707868238593,-435.81138396,0.0002222,2]
[313963090,1707868238610,-64.18861604,0.0002222,2]
[313963091,1707868238619,-198.96,0.0002222,2]
[313963092,1707868238628,-162.21,0.0002222,2]
[313963093,1707868238638,-164.2,0.00022322,2]
[313963094,1707868238647,-533.67934443,0.00022367,2]
[313963095,1707868238742,-466.32065557,0.00022367,2]
[313963096,1707868238755,-177.27,0.00022546,2]
[313963097,1707868238764,-422.12,0.000226,2]
[313963098,1707868238774,-150.0,0.000226,2]
[313963099,1707868238784,-327.61610179,0.000226,2]
[313963100,1707868238796,-77.36389821,0.000226,2]